[Event "Titled Tuesday Blitz May 16 Early 2023"]
[White "Chernov, Mikhail"]
[Black "Sailer, Mike"]
[WhiteFideId "24143170"]
[BlackFideId "2012901"]
[WhiteElo "2113"]
[BlackElo "2109"]
[Result "0-1"]
[Round "08"]
[TimeControl "180+2"]
[Date "2023.05.16"]
[WhiteClock "0:00:33"]
[BlackClock "0:00:38"]

1. e4 {[%clk 0:03:00]}  d5 {[%clk 0:03:00]} 2. exd5 {[%clk 0:03:01]}  Qxd5 {[%clk 0:02:59]} 3. Nc3 {[%clk 0:03:01]}  Qd6 {[%clk 0:02:57]} 4. d4 {[%clk 0:03:02]}  Nf6 {[%clk 0:02:56]} 5. Nf3 {[%clk 0:03:00]}  c6 {[%clk 0:02:56]} 6. Ne5 {[%clk 0:02:55]}  Nbd7 {[%clk 0:02:52]} 7. Nc4 {[%clk 0:02:54]}  Qc7 {[%clk 0:02:52]} 8. Qf3 {[%clk 0:02:55]}  Nb6 {[%clk 0:02:52]} 9. Bf4 {[%clk 0:02:53]}  Qd8 {[%clk 0:02:53]} 10. O-O-O {[%clk 0:02:50]}  Bg4 {[%clk 0:02:50]} 11. Qe3 {[%clk 0:02:28]}  Bxd1 {[%clk 0:02:44]} 12. Nxd1 {[%clk 0:02:29]}  Nbd5 {[%clk 0:02:40]} 13. Qd2 {[%clk 0:02:28]}  Nxf4 {[%clk 0:02:40]} 14. Qxf4 {[%clk 0:02:29]}  e6 {[%clk 0:02:34]} 15. Nde3 {[%clk 0:02:21]}  Nd5 {[%clk 0:02:32]} 16. Nxd5 {[%clk 0:02:15]}  Qxd5 {[%clk 0:02:30]} 17. Ne5 {[%clk 0:02:16]}  f6 {[%clk 0:02:14]} 18. Nf3 {[%clk 0:02:15]}  Bd6 {[%clk 0:02:06]} 19. Qg4 {[%clk 0:02:11]}  Qxa2 {[%clk 0:01:44]} 20. Qxg7 {[%clk 0:02:09]}  O-O-O {[%clk 0:01:42]} 21. c3 {[%clk 0:01:40]}  Bf4+ {[%clk 0:01:26]} 22. Kc2 {[%clk 0:01:39]}  Qa4+ {[%clk 0:01:10]} 23. Kb1 {[%clk 0:01:12]}  Qd1+ {[%clk 0:01:09]} 24. Ka2 {[%clk 0:01:12]}  Rhe8 {[%clk 0:00:59]} 25. Qxf6 {[%clk 0:00:41]}  Rd5 {[%clk 0:00:57]} 26. Bb5 {[%clk 0:00:41]}  Qxh1 {[%clk 0:00:45]} 27. Qxf4 {[%clk 0:00:33]}  Rxb5 {[%clk 0:00:38]} 0-1


[Site "https://www.chess.com"]

[Event "Titled Tuesday Blitz May 16 Early 2023"]
[White "Sharapov, Evgeny"]
[Black "Skaric, Djuro"]
[WhiteFideId "14103133"]
[BlackFideId "934569"]
[WhiteElo "2367"]
[BlackElo "2282"]
[Result "1-0"]
[Round "08"]
[TimeControl "180+2"]
[Date "2023.05.16"]
[WhiteClock "0:01:51"]
[BlackClock "0:00:44"]

1. e4 {[%clk 0:02:59]}  d6 {[%clk 0:02:58]} 2. d4 {[%clk 0:02:59]}  g6 {[%clk 0:02:58]} 3. Nc3 {[%clk 0:02:59]}  Bg7 {[%clk 0:02:58]} 4. f4 {[%clk 0:02:59]}  Nf6 {[%clk 0:02:59]} 5. Nf3 {[%clk 0:02:59]}  O-O {[%clk 0:02:59]} 6. Bd3 {[%clk 0:02:58]}  Nc6 {[%clk 0:02:59]} 7. e5 {[%clk 0:02:58]}  Ng4 {[%clk 0:02:58]} 8. h3 {[%clk 0:02:56]}  Nh6 {[%clk 0:02:58]} 9. g4 {[%clk 0:02:55]}  dxe5 {[%clk 0:02:58]} 10. dxe5 {[%clk 0:02:55]}  Nd4 {[%clk 0:02:57]} 11. Be3 {[%clk 0:02:52]}  Nxf3+ {[%clk 0:02:55]} 12. Qxf3 {[%clk 0:02:52]}  f6 {[%clk 0:02:55]} 13. exf6 {[%clk 0:02:49]}  exf6 {[%clk 0:02:38]} 14. O-O-O {[%clk 0:02:47]}  Qe8 {[%clk 0:02:19]} 15. f5 {[%clk 0:02:46]}  Nf7 {[%clk 0:02:11]} 16. fxg6 {[%clk 0:02:42]}  Ne5 {[%clk 0:02:11]} 17. gxh7+ {[%clk 0:02:42]}  Kh8 {[%clk 0:02:11]} 18. Qg3 {[%clk 0:02:26]}  Nxd3+ {[%clk 0:02:07]} 19. Rxd3 {[%clk 0:02:25]}  Qc6 {[%clk 0:02:03]} 20. Rhd1 {[%clk 0:02:19]}  Be6 {[%clk 0:02:03]} 21. Qh4 {[%clk 0:02:08]}  b5 {[%clk 0:01:22]} 22. Bh6 {[%clk 0:02:02]}  Bxh6+ {[%clk 0:01:20]} 23. Qxh6 {[%clk 0:02:02]}  b4 {[%clk 0:01:20]} 24. Nd5 {[%clk 0:01:56]}  f5 {[%clk 0:01:00]} 25. Ne7 {[%clk 0:01:52]}  Qb6 {[%clk 0:00:44]} 26. Ng6# {[%clk 0:01:51]} 1-0


[Site "https://www.chess.com"]

[Event "Titled Tuesday Blitz May 16 Early 2023"]
[White "Marcziter, Dmitrii"]
[Black "Przybylski, Wojciech"]
[WhiteFideId "13900765"]
[BlackFideId "1117599"]
[WhiteElo "2162"]
[BlackElo "2222"]
[Result "0-1"]
[Round "08"]
[TimeControl "180+2"]
[Date "2023.05.16"]
[WhiteClock "0:00:25"]
[BlackClock "0:01:47"]

1. e4 {[%clk 0:02:59]}  c5 {[%clk 0:02:55]} 2. Nc3 {[%clk 0:02:58]}  d6 {[%clk 0:02:54]} 3. f4 {[%clk 0:02:59]}  Nf6 {[%clk 0:02:53]} 4. Nf3 {[%clk 0:02:59]}  g6 {[%clk 0:02:51]} 5. Bc4 {[%clk 0:02:59]}  Bg7 {[%clk 0:02:52]} 6. d3 {[%clk 0:02:58]}  O-O {[%clk 0:02:52]} 7. O-O {[%clk 0:02:57]}  a6 {[%clk 0:02:51]} 8. a4 {[%clk 0:02:56]}  e6 {[%clk 0:02:52]} 9. Kh1 {[%clk 0:02:50]}  d5 {[%clk 0:02:47]} 10. Ba2 {[%clk 0:02:48]}  Nc6 {[%clk 0:02:44]} 11. f5 {[%clk 0:02:42]}  dxe4 {[%clk 0:02:42]} 12. Nxe4 {[%clk 0:02:28]}  Nxe4 {[%clk 0:02:41]} 13. dxe4 {[%clk 0:02:26]}  Qxd1 {[%clk 0:02:41]} 14. Rxd1 {[%clk 0:02:26]}  exf5 {[%clk 0:02:39]} 15. exf5 {[%clk 0:02:24]}  Bxf5 {[%clk 0:02:36]} 16. c3 {[%clk 0:02:24]}  Rad8 {[%clk 0:02:30]} 17. Bg5 {[%clk 0:02:20]}  Rd3 {[%clk 0:02:26]} 18. Rxd3 {[%clk 0:02:12]}  Bxd3 {[%clk 0:02:26]} 19. Re1 {[%clk 0:02:09]}  h6 {[%clk 0:02:22]} 20. Bf4 {[%clk 0:02:02]}  c4 {[%clk 0:02:19]} 21. Bd2 {[%clk 0:01:26]}  b5 {[%clk 0:02:14]} 22. b3 {[%clk 0:01:25]}  cxb3 {[%clk 0:02:06]} 23. Bxb3 {[%clk 0:01:25]}  Na5 {[%clk 0:02:06]} 24. Bd1 {[%clk 0:01:19]}  Nc4 {[%clk 0:02:04]} 25. axb5 {[%clk 0:01:10]}  axb5 {[%clk 0:02:03]} 26. Bf4 {[%clk 0:01:01]}  Bxc3 {[%clk 0:01:59]} 27. Re7 {[%clk 0:01:01]}  Ra8 {[%clk 0:01:52]} 28. Rd7 {[%clk 0:00:33]}  Bf5 {[%clk 0:01:48]} 29. Bxh6 {[%clk 0:00:25]}  Bxd7 {[%clk 0:01:47]} 0-1


[Site "https://www.chess.com"]

[Event "Titled Tuesday Blitz May 16 Early 2023"]
[White "I_KID_you_not"]
[Black "Kuznetsov, Mikhail"]
[BlackFideId "4117190"]
[WhiteElo "2322"]
[BlackElo "1981"]
[Result "0-1"]
[Round "08"]
[TimeControl "180+2"]
[Date "2023.05.16"]
[WhiteClock "0:00:53"]
[BlackClock "0:00:02"]

1. d4 {[%clk 0:03:00]}  Nf6 {[%clk 0:02:58]} 2. Nc3 {[%clk 0:03:01]}  d5 {[%clk 0:02:57]} 3. Bf4 {[%clk 0:03:02]}  a6 {[%clk 0:02:55]} 4. e3 {[%clk 0:03:02]}  g6 {[%clk 0:02:52]} 5. h4 {[%clk 0:03:01]}  h5 {[%clk 0:02:51]} 6. Nf3 {[%clk 0:03:01]}  Bg7 {[%clk 0:02:51]} 7. Ne5 {[%clk 0:02:59]}  O-O {[%clk 0:02:45]} 8. Be2 {[%clk 0:02:56]}  Nbd7 {[%clk 0:02:43]} 9. f3 {[%clk 0:02:48]}  Re8 {[%clk 0:02:23]} 10. Qd2 {[%clk 0:02:47]}  Nf8 {[%clk 0:02:21]} 11. g4 {[%clk 0:02:39]}  Ne6 {[%clk 0:02:13]} 12. O-O-O {[%clk 0:02:29]}  Nxf4 {[%clk 0:02:11]} 13. exf4 {[%clk 0:02:29]}  c6 {[%clk 0:02:10]} 14. f5 {[%clk 0:02:28]}  gxf5 {[%clk 0:01:48]} 15. Kb1 {[%clk 0:02:07]}  fxg4 {[%clk 0:01:44]} 16. fxg4 {[%clk 0:02:07]}  Nxg4 {[%clk 0:01:39]} 17. Bxg4 {[%clk 0:01:45]}  hxg4 {[%clk 0:01:32]} 18. Qf4 {[%clk 0:01:44]}  f6 {[%clk 0:01:23]} 19. Nxg4 {[%clk 0:01:43]}  Qd6 {[%clk 0:01:21]} 20. Qf3 {[%clk 0:01:27]}  e5 {[%clk 0:00:32]} 21. Ne2 {[%clk 0:01:01]}  e4 {[%clk 0:00:28]} 22. Qg2 {[%clk 0:01:01]}  Qe6 {[%clk 0:00:17]} 23. Rdg1 {[%clk 0:00:58]}  Qxg4 {[%clk 0:00:16]} 24. Qxg4 {[%clk 0:00:58]}  Bxg4 {[%clk 0:00:16]} 25. Rxg4 {[%clk 0:00:58]}  Kh7 {[%clk 0:00:13]} 26. Rhg1 {[%clk 0:00:57]}  Bh6 {[%clk 0:00:12]} 27. Rg6 {[%clk 0:00:57]}  f5 {[%clk 0:00:04]} 28. Rf6 {[%clk 0:00:55]}  Rf8 {[%clk 0:00:04]} 29. Rgg6 {[%clk 0:00:55]}  Rxf6 {[%clk 0:00:04]} 30. Rxf6 {[%clk 0:00:56]}  Rf8 {[%clk 0:00:02]} 31. Rg6 {[%clk 0:00:53]} 0-1


[Site "https://www.chess.com"]

[Event "Titled Tuesday Blitz May 16 Early 2023"]
[White "Weber, Samuel"]
[Black "Balla, Tamas-Kristof"]
[WhiteFideId "12924008"]
[BlackFideId "1208497"]
[WhiteElo "2162"]
[BlackElo "2334"]
[Result "1/2-1/2"]
[Round "08"]
[TimeControl "180+2"]
[Date "2023.05.16"]
[WhiteClock "0:00:07"]
[BlackClock "0:00:03"]

1. b3 {[%clk 0:02:52]}  e5 {[%clk 0:02:52]} 2. Bb2 {[%clk 0:02:43]}  Nc6 {[%clk 0:02:53]} 3. c4 {[%clk 0:02:43]}  Nf6 {[%clk 0:02:50]} 4. e3 {[%clk 0:02:43]}  a6 {[%clk 0:02:46]} 5. Nc3 {[%clk 0:02:43]}  d5 {[%clk 0:02:45]} 6. cxd5 {[%clk 0:02:43]}  Nxd5 {[%clk 0:02:46]} 7. a3 {[%clk 0:02:44]}  Be6 {[%clk 0:02:45]} 8. Qc2 {[%clk 0:02:44]}  Qd7 {[%clk 0:02:40]} 9. Nf3 {[%clk 0:02:44]}  f6 {[%clk 0:02:39]} 10. b4 {[%clk 0:02:45]}  Be7 {[%clk 0:02:36]} 11. Be2 {[%clk 0:02:45]}  O-O {[%clk 0:02:34]} 12. O-O {[%clk 0:02:45]}  Kh8 {[%clk 0:02:34]} 13. Rac1 {[%clk 0:02:45]}  Rfd8 {[%clk 0:02:32]} 14. Rfd1 {[%clk 0:02:45]}  Nb6 {[%clk 0:02:13]} 15. d4 {[%clk 0:02:18]}  exd4 {[%clk 0:02:02]} 16. Nxd4 {[%clk 0:02:18]}  Nxd4 {[%clk 0:02:02]} 17. Rxd4 {[%clk 0:02:18]}  Qe8 {[%clk 0:02:01]} 18. Re4 {[%clk 0:01:21]}  Qf7 {[%clk 0:01:51]} 19. Bh5 {[%clk 0:01:20]}  g6 {[%clk 0:01:40]} 20. Bf3 {[%clk 0:01:20]}  Bf5 {[%clk 0:01:38]} 21. Rxe7 {[%clk 0:01:02]}  Qxe7 {[%clk 0:01:37]} 22. Ne4 {[%clk 0:01:02]}  Bxe4 {[%clk 0:01:24]} 23. Qxe4 {[%clk 0:01:01]}  Qxe4 {[%clk 0:01:12]} 24. Bxf6+ {[%clk 0:01:01]}  Kg8 {[%clk 0:01:10]} 25. Bxe4 {[%clk 0:01:01]}  Rd2 {[%clk 0:01:04]} 26. Bxb7 {[%clk 0:00:46]}  Rf8 {[%clk 0:01:04]} 27. Bh4 {[%clk 0:00:45]}  Nc4 {[%clk 0:00:50]} 28. g4 {[%clk 0:00:41]}  Ne5 {[%clk 0:00:39]} 29. h3 {[%clk 0:00:19]}  Nf3+ {[%clk 0:00:18]} 30. Bxf3 {[%clk 0:00:17]}  Rxf3 {[%clk 0:00:19]} 31. Rxc7 {[%clk 0:00:16]}  Ra2 {[%clk 0:00:17]} 32. Kg2 {[%clk 0:00:14]}  Rf7 {[%clk 0:00:12]} 33. Rc8+ {[%clk 0:00:14]}  Rf8 {[%clk 0:00:12]} 34. Rc7 {[%clk 0:00:14]}  Rf7 {[%clk 0:00:12]} 35. Rc8+ {[%clk 0:00:14]}  Rf8 {[%clk 0:00:12]} 36. Rc6 {[%clk 0:00:11]}  Rxa3 {[%clk 0:00:12]} 37. Bg3 {[%clk 0:00:12]}  Re8 {[%clk 0:00:11]} 38. Bd6 {[%clk 0:00:11]}  Re6 {[%clk 0:00:11]} 39. Rc8+ {[%clk 0:00:10]}  Kf7 {[%clk 0:00:10]} 40. Bc5 {[%clk 0:00:11]}  Rc3 {[%clk 0:00:09]} 41. Rc7+ {[%clk 0:00:11]}  Ke8 {[%clk 0:00:08]} 42. Rc8+ {[%clk 0:00:12]}  Kd7 {[%clk 0:00:05]} 43. Rh8 {[%clk 0:00:12]}  a5 {[%clk 0:00:05]} 44. Rxh7+ {[%clk 0:00:12]}  Kc6 {[%clk 0:00:05]} 45. Bd4 {[%clk 0:00:11]}  axb4 {[%clk 0:00:03]} 46. Ra7 {[%clk 0:00:07]}  Kb5 {[%clk 0:00:03]} 47. Rb7+ {[%clk 0:00:07]}  Kc4 {[%clk 0:00:03]} 48. Rc7+ {[%clk 0:00:07]}  Kd3 {[%clk 0:00:02]} 49. Bxc3 {[%clk 0:00:05]}  bxc3 {[%clk 0:00:03]} 50. Rd7+ {[%clk 0:00:05]}  Ke2 {[%clk 0:00:03]} 51. Rb7 {[%clk 0:00:06]}  Kd2 {[%clk 0:00:03]} 52. Rd7+ {[%clk 0:00:06]}  Ke2 {[%clk 0:00:03]} 53. Rc7 {[%clk 0:00:06]}  Kd2 {[%clk 0:00:02]} 54. Rd7+ {[%clk 0:00:07]}  Ke2 {[%clk 0:00:03]} 1/2-1/2


[Site "https://www.chess.com"]

[Event "Titled Tuesday Blitz May 16 Early 2023"]
[White "Titichoca Daza, Daniel"]
[Black "Jiganchine, Roman"]
[WhiteFideId "3309550"]
[BlackFideId "2603667"]
[WhiteElo "2101"]
[BlackElo "2262"]
[Result "0-1"]
[Round "08"]
[TimeControl "180+2"]
[Date "2023.05.16"]
[WhiteClock "0:00:00"]
[BlackClock "0:00:08"]

1. e4 {[%clk 0:03:00]}  c6 {[%clk 0:02:59]} 2. d4 {[%clk 0:02:56]}  d5 {[%clk 0:03:00]} 3. e5 {[%clk 0:02:52]}  Bf5 {[%clk 0:02:55]} 4. Bd3 {[%clk 0:02:45]}  Bxd3 {[%clk 0:02:53]} 5. Qxd3 {[%clk 0:02:46]}  e6 {[%clk 0:02:52]} 6. Ne2 {[%clk 0:02:35]}  Qa5+ {[%clk 0:02:51]} 7. Bd2 {[%clk 0:02:28]}  Qa6 {[%clk 0:02:50]} 8. Qxa6 {[%clk 0:02:28]}  Nxa6 {[%clk 0:02:49]} 9. O-O {[%clk 0:02:28]}  h5 {[%clk 0:02:49]} 10. b3 {[%clk 0:02:26]}  Ne7 {[%clk 0:02:49]} 11. c4 {[%clk 0:02:21]}  Nf5 {[%clk 0:02:42]} 12. Nbc3 {[%clk 0:02:03]}  Bb4 {[%clk 0:02:32]} 13. Nb1 {[%clk 0:02:00]}  Be7 {[%clk 0:02:31]} 14. Nbc3 {[%clk 0:01:55]}  O-O {[%clk 0:02:29]} 15. a3 {[%clk 0:01:42]}  Rfc8 {[%clk 0:02:28]} 16. Rfc1 {[%clk 0:01:39]}  Kf8 {[%clk 0:02:25]} 17. c5 {[%clk 0:01:39]}  b6 {[%clk 0:02:21]} 18. b4 {[%clk 0:01:36]}  Nc7 {[%clk 0:02:15]} 19. a4 {[%clk 0:01:35]}  bxc5 {[%clk 0:02:09]} 20. bxc5 {[%clk 0:01:25]}  Rcb8 {[%clk 0:01:53]} 21. Rcb1 {[%clk 0:01:23]}  Na6 {[%clk 0:01:53]} 22. f3 {[%clk 0:01:17]}  Bd8 {[%clk 0:01:42]} 23. Kf2 {[%clk 0:01:14]}  h4 {[%clk 0:01:41]} 24. g4 {[%clk 0:01:04]}  hxg3+ {[%clk 0:01:32]} 25. hxg3 {[%clk 0:01:05]}  Nb4 {[%clk 0:01:33]} 26. g4 {[%clk 0:01:00]}  Nh6 {[%clk 0:01:16]} 27. Bxh6 {[%clk 0:00:58]}  gxh6 {[%clk 0:01:16]} 28. f4 {[%clk 0:00:58]}  Nc2 {[%clk 0:01:06]} 29. Nc1 {[%clk 0:00:43]}  Nxa1 {[%clk 0:01:03]} 30. Rxa1 {[%clk 0:00:43]}  Ba5 {[%clk 0:01:00]} 31. N3e2 {[%clk 0:00:42]}  Rb2 {[%clk 0:01:00]} 32. Nd3 {[%clk 0:00:41]}  Rb3 {[%clk 0:00:52]} 33. Ndc1 {[%clk 0:00:36]}  Rb7 {[%clk 0:00:51]} 34. Nd3 {[%clk 0:00:34]}  Rab8 {[%clk 0:00:50]} 35. Rh1 {[%clk 0:00:34]}  Kg7 {[%clk 0:00:49]} 36. f5 {[%clk 0:00:34]}  Bd2 {[%clk 0:00:43]} 37. Ng3 {[%clk 0:00:21]}  Bg5 {[%clk 0:00:35]} 38. Nh5+ {[%clk 0:00:21]}  Kf8 {[%clk 0:00:30]} 39. Ke2 {[%clk 0:00:19]}  Rb3 {[%clk 0:00:29]} 40. Rf1 {[%clk 0:00:19]}  Rb1 {[%clk 0:00:29]} 41. Rf3 {[%clk 0:00:14]}  Ra1 {[%clk 0:00:28]} 42. fxe6 {[%clk 0:00:14]}  Ra2+ {[%clk 0:00:27]} 43. Kf1 {[%clk 0:00:12]}  Rb1+ {[%clk 0:00:27]} 44. Ne1 {[%clk 0:00:13]}  Raa1 {[%clk 0:00:16]} 45. Rxf7+ {[%clk 0:00:09]}  Ke8 {[%clk 0:00:16]} 46. Ng7+ {[%clk 0:00:09]}  Kd8 {[%clk 0:00:13]} 47. Rf8+ {[%clk 0:00:08]}  Kc7 {[%clk 0:00:11]} 48. Rf7+ {[%clk 0:00:09]}  Kb8 {[%clk 0:00:09]} 49. Rf8+ {[%clk 0:00:09]}  Kb7 {[%clk 0:00:09]} 50. e7 {[%clk 0:00:05]}  Rxe1+ {[%clk 0:00:08]} 51. Kg2 {[%clk 0:00:05]}  Rg1+ {[%clk 0:00:08]} 52. Kh2 {[%clk 0:00:05]}  Rh1+ {[%clk 0:00:08]} 53. Kg2 {[%clk 0:00:02]}  Rag1+ {[%clk 0:00:08]} 54. Kf2 {[%clk 0:00:00]}  Bxe7 {[%clk 0:00:08]} 0-1


[Site "https://www.chess.com"]

[Event "Titled Tuesday Blitz May 16 Early 2023"]
[White "Mazurkiewicz, Michal"]
[Black "Thiel, Thomas"]
[WhiteFideId "1124943"]
[BlackFideId "4615964"]
[WhiteElo "2054"]
[BlackElo "2204"]
[Result "0-1"]
[Round "08"]
[TimeControl "180+2"]
[Date "2023.05.16"]
[WhiteClock "0:00:00"]
[BlackClock "0:00:55"]

1. e4 {[%clk 0:03:00]}  d5 {[%clk 0:02:59]} 2. exd5 {[%clk 0:03:00]}  Nf6 {[%clk 0:02:59]} 3. Nf3 {[%clk 0:03:00]}  Nxd5 {[%clk 0:02:58]} 4. d4 {[%clk 0:03:00]}  g6 {[%clk 0:02:58]} 5. c4 {[%clk 0:03:00]}  Nb6 {[%clk 0:02:56]} 6. Be2 {[%clk 0:03:00]}  Bg7 {[%clk 0:02:54]} 7. Be3 {[%clk 0:02:57]}  O-O {[%clk 0:02:52]} 8. O-O {[%clk 0:02:56]}  c5 {[%clk 0:02:48]} 9. Nc3 {[%clk 0:02:51]}  cxd4 {[%clk 0:02:46]} 10. Nxd4 {[%clk 0:02:52]}  Nc6 {[%clk 0:02:43]} 11. Nxc6 {[%clk 0:02:51]}  bxc6 {[%clk 0:02:44]} 12. Qb3 {[%clk 0:02:48]}  Be6 {[%clk 0:02:37]} 13. a4 {[%clk 0:02:28]}  Rb8 {[%clk 0:02:26]} 14. Bf4 {[%clk 0:02:28]}  Nxc4 {[%clk 0:02:15]} 15. Bxb8 {[%clk 0:02:19]}  Nd2 {[%clk 0:02:13]} 16. Qxe6 {[%clk 0:00:56]}  fxe6 {[%clk 0:02:08]} 17. Rfd1 {[%clk 0:00:55]}  Qxb8 {[%clk 0:02:00]} 18. Rxd2 {[%clk 0:00:55]}  Qf4 {[%clk 0:01:59]} 19. Rad1 {[%clk 0:00:37]}  Qxf2+ {[%clk 0:01:56]} 20. Kh1 {[%clk 0:00:37]}  Bxc3 {[%clk 0:01:55]} 21. bxc3 {[%clk 0:00:35]}  Qe3 {[%clk 0:01:51]} 22. Bc4 {[%clk 0:00:23]}  Qxc3 {[%clk 0:01:47]} 23. Bxe6+ {[%clk 0:00:23]}  Kg7 {[%clk 0:01:47]} 24. Rd7 {[%clk 0:00:13]}  Qf6 {[%clk 0:01:45]} 25. Bc4 {[%clk 0:00:12]}  Kh6 {[%clk 0:01:41]} 26. h3 {[%clk 0:00:13]}  Qf4 {[%clk 0:01:39]} 27. Bf1 {[%clk 0:00:13]}  Qxa4 {[%clk 0:01:32]} 28. Re1 {[%clk 0:00:12]}  Rf7 {[%clk 0:01:23]} 29. Be2 {[%clk 0:00:06]}  Qa5 {[%clk 0:01:21]} 30. Rdd1 {[%clk 0:00:05]}  Rf2 {[%clk 0:01:16]} 31. Bf3 {[%clk 0:00:04]}  Qb4 {[%clk 0:01:11]} 32. Rf1 {[%clk 0:00:01]}  Rxf1+ {[%clk 0:01:09]} 33. Rxf1 {[%clk 0:00:02]}  a5 {[%clk 0:01:08]} 34. g4 {[%clk 0:00:02]}  a4 {[%clk 0:01:05]} 35. h4 {[%clk 0:00:02]}  a3 {[%clk 0:01:04]} 36. g5+ {[%clk 0:00:02]}  Kg7 {[%clk 0:01:03]} 37. Kg2 {[%clk 0:00:02]}  a2 {[%clk 0:01:01]} 38. Kg3 {[%clk 0:00:03]}  Qb2 {[%clk 0:00:58]} 39. Bxc6 {[%clk 0:00:01]}  Qe5+ {[%clk 0:00:56]} 40. Kh3 {[%clk 0:00:00]}  a1=Q {[%clk 0:00:55]} 0-1


[Site "https://www.chess.com"]

[Event "Titled Tuesday Blitz May 16 Early 2023"]
[White "Pandey Srishti"]
[Black "Jaivardhan Raj"]
[WhiteFideId "35093290"]
[BlackFideId "25744437"]
[WhiteElo "2123"]
[BlackElo "1772"]
[Result "1-0"]
[Round "08"]
[TimeControl "180+2"]
[Date "2023.05.16"]
[WhiteClock "0:00:01"]
[BlackClock "0:00:13"]

1. e4 {[%clk 0:02:58]}  c5 {[%clk 0:02:59]} 2. Nf3 {[%clk 0:02:54]}  e6 {[%clk 0:02:59]} 3. d4 {[%clk 0:02:52]}  cxd4 {[%clk 0:02:59]} 4. Nxd4 {[%clk 0:02:52]}  Nc6 {[%clk 0:03:00]} 5. Nc3 {[%clk 0:02:51]}  a6 {[%clk 0:03:01]} 6. Nxc6 {[%clk 0:02:50]}  bxc6 {[%clk 0:03:01]} 7. Bd3 {[%clk 0:02:46]}  Qc7 {[%clk 0:03:01]} 8. O-O {[%clk 0:02:46]}  d5 {[%clk 0:02:59]} 9. Kh1 {[%clk 0:02:44]}  Bb4 {[%clk 0:02:54]} 10. Bd2 {[%clk 0:02:40]}  Ne7 {[%clk 0:02:51]} 11. a3 {[%clk 0:02:04]}  Ba5 {[%clk 0:02:48]} 12. b4 {[%clk 0:02:01]}  Bb6 {[%clk 0:02:43]} 13. Rb1 {[%clk 0:02:00]}  Bd7 {[%clk 0:02:39]} 14. Na4 {[%clk 0:02:00]}  Ba7 {[%clk 0:02:38]} 15. Qg4 {[%clk 0:01:58]}  Ng6 {[%clk 0:02:36]} 16. Bc3 {[%clk 0:01:50]}  e5 {[%clk 0:02:30]} 17. Qg3 {[%clk 0:01:46]}  d4 {[%clk 0:02:28]} 18. Bd2 {[%clk 0:01:45]}  O-O {[%clk 0:02:28]} 19. Nb2 {[%clk 0:01:38]}  Be6 {[%clk 0:02:22]} 20. Nc4 {[%clk 0:01:31]}  c5 {[%clk 0:02:15]} 21. b5 {[%clk 0:01:25]}  axb5 {[%clk 0:02:13]} 22. Rxb5 {[%clk 0:01:26]}  Rab8 {[%clk 0:02:03]} 23. Rbb1 {[%clk 0:01:11]}  Rxb1 {[%clk 0:02:00]} 24. Rxb1 {[%clk 0:01:09]}  Rb8 {[%clk 0:02:01]} 25. Re1 {[%clk 0:01:00]}  f6 {[%clk 0:01:40]} 26. h3 {[%clk 0:01:00]}  Qf7 {[%clk 0:01:37]} 27. Nd6 {[%clk 0:00:57]}  Qd7 {[%clk 0:01:35]} 28. Nc4 {[%clk 0:00:55]}  Rd8 {[%clk 0:01:27]} 29. Ba5 {[%clk 0:00:39]}  Rb8 {[%clk 0:01:16]} 30. Qf3 {[%clk 0:00:31]}  Qf7 {[%clk 0:01:07]} 31. Nd6 {[%clk 0:00:28]}  Qd7 {[%clk 0:01:06]} 32. Nc4 {[%clk 0:00:25]}  Qa4 {[%clk 0:01:01]} 33. Bc7 {[%clk 0:00:17]}  Rc8 {[%clk 0:00:57]} 34. Nb2 {[%clk 0:00:12]}  Qxa3 {[%clk 0:00:53]} 35. Bc4 {[%clk 0:00:12]}  Qxf3 {[%clk 0:00:48]} 36. Bxe6+ {[%clk 0:00:13]}  Kf8 {[%clk 0:00:47]} 37. Bd6+ {[%clk 0:00:12]}  Ke8 {[%clk 0:00:45]} 38. gxf3 {[%clk 0:00:12]}  Rc6 {[%clk 0:00:46]} 39. Nc4 {[%clk 0:00:12]}  Nf4 {[%clk 0:00:42]} 40. Bd5 {[%clk 0:00:10]}  Ra6 {[%clk 0:00:37]} 41. Rb1 {[%clk 0:00:09]}  Nxh3 {[%clk 0:00:35]} 42. Bb7 {[%clk 0:00:06]}  Ra2 {[%clk 0:00:30]} 43. Bc6+ {[%clk 0:00:06]}  Kf7 {[%clk 0:00:30]} 44. Rb7+ {[%clk 0:00:05]}  Kg6 {[%clk 0:00:29]} 45. Bf8 {[%clk 0:00:05]}  Nxf2+ {[%clk 0:00:19]} 46. Kg2 {[%clk 0:00:04]}  Rxc2 {[%clk 0:00:12]} 47. Rxg7+ {[%clk 0:00:04]}  Kh6 {[%clk 0:00:13]} 48. Rg4+ {[%clk 0:00:01]}  Kh5 {[%clk 0:00:13]} 49. Be8# {[%clk 0:00:01]} 1-0


[Site "https://www.chess.com"]